[Event "5th EKA IIFL Investment 2019"]
[Site "Mumbai"]
[Date "2020.01.04"]
[Round "6.59"]
[White "Praveen Kumar C"]
[Black "Rathneesh R"]
[Result "1/2-1/2"]
[ECO "E06"]
[WhiteElo "2199"]
[BlackElo "2064"]
[Annotator "NA"]
[PlyCount "80"]
[EventDate "2019.12.30"]
[EventType "swiss"]
[EventCountry "IND"]
[SourceTitle "playchess.com"]
[Source "ChessBase"]
[SourceQuality "1"]
[TimeControl "40/5400+30:1800+30"]

1. d4 {[%emt 0:00:00]} Nf6 {[%emt 0:00:00]} 2. c4 {[%emt 0:00:00]} e6 {[%emt 0:00:09]} 3. g3 {[%emt 0:00:09]} d5 {[%emt 0:00:25]} 4. Nf3 {[%emt 0:00:07]} Be7 {[%emt 0:00:20]} 5. Bg2 {[%emt 0:00:09]} O-O {[%emt 0:00:15]} 6. O-O {[%emt 0:00:07]} dxc4 {[%emt 0:00:40]} 7. Qc2 {[%emt 0:00:06]} a6 {[%emt 0:00:21]} 8. Qxc4 {[%emt 0:00:17]} b5 {[%emt 0:00:51]} 9. Qc2 {[%emt 0:00:08]} Bb7 {[%emt 0:00:13]} 10. Bd2 {[%emt 0:00:08]} Be4 {[%emt 0:00:59]} 11. Qb3 {[%emt 0:03:35]} c5 {[%emt 0:07:25]} 12. dxc5 Nbd7 {[%emt 0:01:47]} 13. Be3 {[%emt 0:17:43]} Nxc5 {[%emt 0:05:13]} 14. Bxc5 {[%emt 0:00:37]} Bxc5 {[%emt 0:00:24]} 15. Nc3 {[%emt 0:00:07]} Bb7 {[%emt 0:18:49]} 16. Ne5 {[%emt 0:02:31]} Bxg2 {[%emt 0:01:46]} 17. Kxg2 {[%emt 0:00:11]} Bd4 {[%emt 0:09:15]} 18. Rad1 {[%emt 0:10:25]} Qb6 {[%emt 0:02:55]} 19. Nf3 {[%emt 0:01:17]} Bxc3 {[%emt 0:03:51]} 20. Qxc3 {[%emt 0:00:09]} Rac8 {[%emt 0:02:21]} 21. Qd4 {[%emt 0:06:44]} Qxd4 {[%emt 0:05:27]} 22. Nxd4 {[%emt 0:03:39]} e5 {[%emt 0:06:30]} 23. Nf3 {[%emt 0:06:07]} Rc2 {[%emt 0:00:54]} 24. Rd2 {[%emt 0:00:28]} Rxd2 {[%emt 0:02:26]} 25. Nxd2 {[%emt 0:00:02]} Rc8 {[%emt 0:01:19]} 26. Nb3 {[%emt 0:00:27]} Kf8 {[%emt 0:01:58]} 27. Rc1 {[%emt 0:00:52]} Rxc1 {[%emt 0:02:13]} 28. Nxc1 {[%emt 0:00:02]} Ke7 {[%emt 0:00:17]} 29. f3 {[%emt 0:00:22]} Kd6 {[%emt 0:00:09]} 30. Kf2 {[%emt 0:00:09]} Nd7 {[%emt 0:00:40]} 31. Ke3 {[%emt 0:00:10]} Nf6 {[%emt 0:00:04]} 32. Nd3 {[%emt 0:00:16]} Nd5+ {[%emt 0:00:07]} 33. Kd2 {[%emt 0:00:06]} a5 {[%emt 0:00:20]} 34. Nf2 {[%emt 0:00:08]} h6 {[%emt 0:00:25]} 35. Ne4+ {[%emt 0:00:11]} Kc6 {[%emt 0:00:01]} 36. Nc3 {[%emt 0:00:11]} Nxc3 {[%emt 0:00:29]} 37. Kxc3 {[%emt 0:00:04]} Kc5 {[%emt 0:00:05]} 38. e4 {[%emt 0:00:08]} Kc6 {[%emt 0:00:11]} 39. a3 {[%emt 0:00:05]} Kc5 40. b4+ {[%emt 0:00:00]} axb4+ {[%emt 0:00:00]} 1/2-1/2

[Event "5th EKA IIFL Investment 2019"]
[Site "Mumbai"]
[Date "2020.01.05"]
[Round "7.6"]
[White "Chanda, Sandipan"]
[Black "Muthaiah AL"]
[Result "1-0"]
[ECO "D02"]
[WhiteElo "2546"]
[BlackElo "2367"]
[Annotator "RC"]
[PlyCount "91"]
[EventDate "2019.12.30"]
[EventType "swiss"]
[EventCountry "IND"]
[SourceTitle "playchess.com"]
[Source "ChessBase"]
[SourceQuality "1"]
[TimeControl "40/5400+30:1800+30"]

1. d4 {[%emt 0:02:10]} d5 {[%emt 0:00:35]} 2. Nf3 {[%emt 0:00:17]} Nf6 {[%emt 0:00:32]} 3. Bf4 {[%emt 0:00:13]} c5 {[%emt 0:00:36]} 4. e3 Nc6 {[%emt 0:01:43]} 5. Nbd2 {[%emt 0:00:27]} cxd4 {[%emt 0:01:13]} 6. exd4 {[%emt 0:00:12]} Bf5 {[%emt 0:00:59]} 7. Bb5 {[%emt 0:00:19]} e6 {[%emt 0:05:26]} 8. Ne5 {[%emt 0:00:12]} Qb6 {[%emt 0:04:38]} 9. c4 {[%emt 0:00:11]} a6 {[%emt 0:02:47]} 10. Bxc6+ {[%emt 0:07:45]} bxc6 {[%emt 0:00:10]} 11. c5 {[%emt 0:02:01]} Qxb2 {[%emt 0:08:48]} 12. Nxc6 {[%emt 0:02:47]} Nd7 {[%emt 0:14:30]} 13. O-O {[%emt 0:13:23]} Qb5 {[%emt 0:03:35]} 14. Ne5 {[%emt 0:00:48]} Nxe5 {[%emt 0:00:39]} 15. Bxe5 {[%emt 0:00:09]} f6 {[%emt 0:01:25]} 16. Bf4 {[%emt 0:10:16]} g5 {[%emt 0:03:59]} 17. Bg3 {[%emt 0:04:24]} h5 {[%emt 0:04:50]} 18. h3 {[%emt 0:08:27]} Kf7 {[%emt 0:04:13]} 19. Re1 {[%emt 0:01:09]} g4 {[%emt 0:05:47]} 20. Re3 {[%emt 0:07:58]} Bh6 {[%emt 0:04:05]} 21. Rb3 {[%emt 0:00:23]} Qa5 {[%emt 0:01:17]} 22. Nf1 {[%emt 0:03:56]} Kg6 {[%emt 0:04:57]} 23. h4 {[%emt 0:00:55]} Rh7 {[%emt 0:11:53]} 24. Ne3 {[%emt 0:02:07]} Bxe3 {[%emt 0:03:27]} 25. fxe3 {[%emt 0:00:11]} Raa7 {[%emt 0:02:13]} 26. Qe1 {[%emt 0:01:52]} Qxe1+ {[%emt 0:01:56]} 27. Rxe1 {[%emt 0:00:06]} Rab7 {[%emt 0:00:51]} 28. Rb6 {[%emt 0:10:04]} e5 {[%emt 0:00:25]} 29. Rc1 {[%emt 0:01:00]} exd4 {[%emt 0:03:30]} 30. exd4 {[%emt 0:01:07]} a5 {[%emt 0:00:27]} 31. a4 {[%emt 0:03:15]} Rbe7 {[%emt 0:00:38]} 32. c6 {[%emt 0:00:24]} Re3 {[%emt 0:02:20]} 33. Bd6 {[%emt 0:04:12]} Rh8 {[%emt 0:00:49]} 34. c7 {[%emt 0:00:08]} Kf7 {[%emt 0:00:08]} 35. Rf1 {[%emt 0:00:50]} Bd3 {[%emt 0:00:42]} 36. Rb8 {[%emt 0:01:56]} Ree8 {[%emt 0:00:43]} 37. Rxf6+ {[%emt 0:01:20]} Kxf6 {[%emt 0:00:02]} 38. Be5+ {[%emt 0:00:07]} Ke7 {[%emt 0:01:18]} 39. Bxh8 {[%emt 0:00:06]} Bf5 {[%emt 0:00:47]} 40. Rd8 {[%emt 0:00:00]} Bc8 {[%emt 0:00:00]} 41. Be5 {[%emt 0:02:25]} g3 {[%emt 0:12:15]} 42. Bd6+ {[%emt 0:02:33]} Kf7 {[%emt 0:00:16]} 43. Bxg3 {[%emt 0:00:10]} Bg4 {[%emt 0:02:00]} 44. Rxd5 {[%emt 0:02:43]} Re3 {[%emt 0:00:47]} 45. Kh2 {[%emt 0:00:21]} Rc3 {[%emt 0:01:08]} 46. Rd8 {[%emt 0:00:39]} 1-0

[Event "5th EKA IIFL Investment 2019"]
[Site "Mumbai"]
[Date "2020.01.05"]
[Round "7.8"]
[White "Stupak, Kirill"]
[Black "Subhayan Kundu"]
[Result "1-0"]
[ECO "E06"]
[WhiteElo "2506"]
[BlackElo "2244"]
[Annotator "ChessBase"]
[PlyCount "71"]
[EventDate "2019.12.30"]
[EventType "swiss"]
[EventCountry "IND"]
[SourceTitle "playchess.com"]
[Source "ChessBase"]
[SourceQuality "1"]
[TimeControl "40/5400+30:1800+30"]

1. d4 {[%emt 0:00:00]} Nf6 {[%emt 0:01:50]} 2. g3 {[%emt 0:00:00]} d5 {[%emt 0:00:30]} 3. Bg2 {[%emt 0:00:09]} e6 {[%emt 0:00:12]} 4. c4 {[%emt 0:00:30]} Be7 {[%emt 0:00:22]} 5. Nf3 {[%emt 0:02:38]} O-O {[%emt 0:00:10]} 6. O-O {[%emt 0:00:21]} dxc4 {[%emt 0:00:06]} 7. Ne5 {[%emt 0:00:05]} Nc6 {[%emt 0:00:17]} 8. Nxc6 {[%emt 0:00:02]} bxc6 {[%emt 0:00:11]} 9. Na3 {[%emt 0:00:01]} Bxa3 {[%emt 0:08:53]} 10. bxa3 {[%emt 0:00:13]} Nd5 {[%emt 0:07:53]} 11. Qa4 {[%emt 0:00:34]} Nb6 {[%emt 0:01:04]} 12. Qa5 {[%emt 0:00:10]} Rb8 {[%emt 0:26:46]} 13. Rd1 {[%emt 0:15:46]} a6 {[%emt 0:01:31]} 14. Bd2 Nd5 15. a4 {[%emt 0:09:52]} f5 {[%emt 0:08:37]} 16. Qc5 {[%emt 0:06:59]} c3 {[%emt 0:01:18]} 17. Bxc3 {[%emt 0:00:09]} Qd6 {[%emt 0:00:08]} 18. Qc4 {[%emt 0:02:27]} Bd7 {[%emt 0:00:39]} 19. e3 {[%emt 0:05:29]} Nb6 {[%emt 0:09:41]} 20. Qxa6 {[%emt 0:13:46]} Ra8 {[%emt 0:00:30]} 21. Qe2 {[%emt 0:00:26]} Rxa4 {[%emt 0:00:07]} 22. Rdc1 {[%emt 0:00:32]} Rfa8 {[%emt 0:01:59]} 23. Be1 {[%emt 0:00:33]} Nd5 {[%emt 0:00:45]} 24. Qc2 {[%emt 0:04:27]} g6 {[%emt 0:02:11]} 25. Bf1 {[%emt 0:01:59]} Nb6 {[%emt 0:01:25]} 26. Bg2 {[%emt 0:04:01]} Nd5 {[%emt 0:00:06]} 27. Bf3 {[%emt 0:00:01]} Ra3 {[%emt 0:08:56]} 28. Be2 {[%emt 0:01:20]} Nb6 {[%emt 0:01:14]} 29. Rcb1 {[%emt 0:02:05]} Qd5 {[%emt 0:00:54]} 30. Rb2 {[%emt 0:00:48]} c5 {[%emt 0:01:03]} 31. dxc5 {[%emt 0:04:19]} Na4 {[%emt 0:00:22]} 32. Rd1 {[%emt 0:08:29]} Qe5 {[%emt 0:00:37]} 33. Rb3 {[%emt 0:01:49]} Rxb3 {[%emt 0:02:59]} 34. axb3 {[%emt 0:00:12]} Nxc5 {[%emt 0:01:05]} 35. Bb4 {[%emt 0:01:11]} Na6 {[%emt 0:04:36]} 36. Bc3 {[%emt 0:00:15]} 1-0

[Event "5th EKA IIFL Investment 2019"]
[Site "Mumbai"]
[Date "2020.01.05"]
[Round "7.13"]
[White "Gholami, Aryan"]
[Black "Ameir, Moheb"]
[Result "1/2-1/2"]
[ECO "B31"]
[WhiteElo "2541"]
[BlackElo "2363"]
[Annotator "ChessBase"]
[PlyCount "91"]
[EventDate "2019.12.30"]
[EventType "swiss"]
[EventCountry "IND"]
[SourceTitle "playchess.com"]
[Source "ChessBase"]
[SourceQuality "1"]
[TimeControl "40/5400+30:1800+30"]

1. Nf3 {[%emt 0:00:00]} c5 {[%emt 0:00:00]} 2. e4 {[%emt 0:00:00]} Nc6 {[%emt 0:01:23]} 3. Bb5 {[%emt 0:00:00]} g6 {[%emt 0:00:11]} 4. O-O {[%emt 0:00:05]} Bg7 {[%emt 0:00:09]} 5. Re1 {[%emt 0:00:27]} Nf6 {[%emt 0:00:17]} 6. Nc3 {[%emt 0:01:06]} O-O {[%emt 0:01:33]} 7. e5 {[%emt 0:00:53]} Ne8 {[%emt 0:01:26]} 8. Bxc6 {[%emt 0:00:41]} dxc6 {[%emt 0:06:29]} 9. h3 {[%emt 0:00:38]} Nc7 {[%emt 0:01:29]} 10. d3 {[%emt 0:00:23]} Ne6 {[%emt 0:01:32]} 11. Ne4 {[%emt 0:09:33]} b6 {[%emt 0:06:44]} 12. Neg5 {[%emt 0:11:34]} h6 {[%emt 0:11:48]} 13. Nxe6 {[%emt 0:01:17]} Bxe6 {[%emt 0:00:02]} 14. b3 {[%emt 0:01:10]} a5 {[%emt 0:02:02]} 15. a4 {[%emt 0:00:25]} Ra7 {[%emt 0:05:07]} 16. Bb2 {[%emt 0:02:15]} Qc8 {[%emt 0:10:16]} 17. Qe2 {[%emt 0:01:29]} Bd5 {[%emt 0:05:12]} 18. Nd2 {[%emt 0:03:59]} Kh7 {[%emt 0:12:05]} 19. Rad1 {[%emt 0:14:07]} Rb7 {[%emt 0:10:59]} 20. c4 {[%emt 0:03:49]} Be6 {[%emt 0:02:49]} 21. Nf3 {[%emt 0:01:07]} Re8 {[%emt 0:04:57]} 22. d4 {[%emt 0:03:13]} cxd4 {[%emt 0:00:57]} 23. Nxd4 {[%emt 0:01:05]} Rd8 {[%emt 0:04:51]} 24. Nxe6 {[%emt 0:01:55]} Rxd1 {[%emt 0:01:45]} 25. Ng5+ {[%emt 0:07:42]} hxg5 {[%emt 0:00:06]} 26. Rxd1 {[%emt 0:00:05]} Qe6 {[%emt 0:01:30]} 27. Bd4 {[%emt 0:06:20]} b5 {[%emt 0:00:56]} 28. axb5 {[%emt 0:01:58]} cxb5 {[%emt 0:00:01]} 29. cxb5 {[%emt 0:00:51]} Qxb3 {[%emt 0:00:59]} 30. b6 {[%emt 0:00:05]} a4 {[%emt 0:01:15]} 31. Ra1 {[%emt 0:03:34]} Rd7 {[%emt 0:01:24]} 32. Qb2 {[%emt 0:01:03]} Qc4 {[%emt 0:04:27]} 33. Bc3 {[%emt 0:03:10]} Rb7 {[%emt 0:00:24]} 34. g3 {[%emt 0:00:56]} e6 {[%emt 0:01:23]} 35. Bd4 {[%emt 0:02:04]} Bf8 {[%emt 0:00:16]} 36. Rc1 {[%emt 0:00:20]} Qd5 {[%emt 0:00:44]} 37. Rc7 {[%emt 0:00:16]} a3 {[%emt 0:00:10]} 38. Qc3 {[%emt 0:00:20]} a2 {[%emt 0:00:50]} 39. Rxb7 {[%emt 0:00:29]} Qxb7 {[%emt 0:00:01]} 40. Kh2 {[%emt 0:00:00]} Qe4 {[%emt 0:00:00]} 41. Qb2 {[%emt 0:26:57]} Ba3 {[%emt 0:10:47]} 42. Qxa3 {[%emt 0:04:40]} Qxd4 {[%emt 0:00:28]} 43. Qxa2 {[%emt 0:00:05]} Qxb6 {[%emt 0:00:04]} 44. Qe2 {[%emt 0:00:07]} Qd4 {[%emt 0:01:27]} 45. Qf3 {[%emt 0:00:11]} Kg8 {[%emt 0:00:21]} 46. Qf6 {[%emt 0:00:06]} 1/2-1/2

[Event "5th EKA IIFL Investment 2019"]
[Site "Mumbai"]
[Date "2020.01.05"]
[Round "7.14"]
[White "Manik, Mikulas"]
[Black "Debashis, Das"]
[Result "1-0"]
[ECO "B90"]
[WhiteElo "2378"]
[BlackElo "2523"]
[Annotator "ChessBase"]
[PlyCount "65"]
[EventDate "2019.12.30"]
[EventType "swiss"]
[EventCountry "IND"]
[SourceTitle "playchess.com"]
[Source "ChessBase"]
[SourceQuality "1"]
[TimeControl "40/5400+30:1800+30"]

1. e4 {[%emt 0:00:00]} c5 {[%emt 0:00:00]} 2. Nf3 {[%emt 0:00:00]} d6 {[%emt 0:00:20]} 3. d4 {[%emt 0:00:00]} cxd4 {[%emt 0:00:11]} 4. Nxd4 {[%emt 0:00:00]} Nf6 {[%emt 0:00:03]} 5. Nc3 {[%emt 0:00:00]} a6 {[%emt 0:00:11]} 6. Be3 {[%emt 0:00:00]} e6 {[%emt 0:02:53]} 7. Be2 {[%emt 0:00:54]} Be7 {[%emt 0:01:06]} 8. f4 {[%emt 0:02:00]} Qc7 {[%emt 0:00:09]} 9. a4 {[%emt 0:01:18]} Nc6 {[%emt 0:00:21]} 10. O-O {[%emt 0:00:34]} O-O {[%emt 0:00:08]} 11. Kh1 {[%emt 0:03:57]} Re8 {[%emt 0:00:13]} 12. g4 {[%emt 0:14:37]} Nxd4 {[%emt 0:23:31]} 13. Bxd4 {[%emt 0:02:49]} e5 {[%emt 0:00:06]} 14. Be3 exf4 {[%emt 0:00:47]} 15. Bxf4 {[%emt 0:01:40]} Bf8 {[%emt 0:01:56]} 16. Bf3 {[%emt 0:08:57]} Be6 {[%emt 0:02:07]} 17. g5 {[%emt 0:05:12]} Nd7 {[%emt 0:01:38]} 18. Nd5 {[%emt 0:01:51]} Qa5 {[%emt 0:08:14]} 19. b4 {[%emt 0:07:56]} Qd8 {[%emt 0:00:09]} 20. a5 {[%emt 0:00:03]} Rc8 {[%emt 0:00:57]} 21. Ra3 {[%emt 0:06:28]} Ne5 {[%emt 0:17:49]} 22. Bg2 {[%emt 0:03:08]} Ng6 {[%emt 0:08:52]} 23. Bc1 {[%emt 0:06:14]} Kh8 {[%emt 0:01:35]} 24. Bh3 {[%emt 0:07:27]} Rc4 {[%emt 0:04:05]} 25. Bf5 {[%emt 0:16:10]} Nh4 {[%emt 0:06:35]} 26. Bxe6 {[%emt 0:02:41]} fxe6 {[%emt 0:01:11]} 27. Qh5 {[%emt 0:00:18]} Rxe4 {[%emt 0:13:40]} 28. g6 {[%emt 0:01:56]} Nxg6 {[%emt 0:01:17]} 29. Bg5 {[%emt 0:00:03]} Qd7 {[%emt 0:01:48]} 30. Rh3 {[%emt 0:00:58]} h6 {[%emt 0:02:29]} 31. Bxh6 {[%emt 0:06:37]} gxh6 {[%emt 0:00:36]} 32. Qxg6 {[%emt 0:00:05]} Bg7 {[%emt 0:00:32]} 33. Nf6 {[%emt 0:00:42]} 1-0

[Event "5th EKA IIFL Investment 2019"]
[Site "Mumbai"]
[Date "2020.01.05"]
[Round "7.17"]
[White "Krishnater Kushager"]
[Black "Shyaamnikhil P"]
[Result "1/2-1/2"]
[ECO "B90"]
[WhiteElo "2386"]
[BlackElo "2458"]
[Annotator "ChessBase"]
[PlyCount "78"]
[EventDate "2019.12.30"]
[EventType "swiss"]
[EventCountry "IND"]
[SourceTitle "playchess.com"]
[Source "ChessBase"]
[SourceQuality "1"]
[TimeControl "40/5400+30:1800+30"]

1. e4 {[%emt 0:00:00]} c5 {[%emt 0:00:17]} 2. Nf3 {[%emt 0:00:00]} d6 {[%emt 0:00:29]} 3. d4 {[%emt 0:00:00]} cxd4 {[%emt 0:00:04]} 4. Nxd4 {[%emt 0:00:00]} Nf6 {[%emt 0:00:05]} 5. Nc3 {[%emt 0:00:00]} a6 {[%emt 0:00:08]} 6. h3 {[%emt 0:00:00]} e5 {[%emt 0:03:36]} 7. Nb3 {[%emt 0:00:00]} Be7 {[%emt 0:00:08]} 8. g4 {[%emt 0:00:07]} h6 {[%emt 0:00:05]} 9. Be3 {[%emt 0:00:13]} Nbd7 {[%emt 0:03:33]} 10. a4 {[%emt 0:00:22]} b6 {[%emt 0:00:46]} 11. Qf3 {[%emt 0:00:18]} Bb7 {[%emt 0:05:28]} 12. h4 {[%emt 0:00:06]} Rc8 {[%emt 0:05:20]} 13. g5 {[%emt 0:00:04]} hxg5 {[%emt 0:08:53]} 14. hxg5 {[%emt 0:00:13]} Rxh1 {[%emt 0:00:11]} 15. Qxh1 {[%emt 0:00:09]} Ng4 {[%emt 0:00:18]} 16. Qh8+ {[%emt 0:17:35]} Nf8 {[%emt 0:03:10]} 17. Bh3 {[%emt 0:14:42]} Nxe3 {[%emt 0:01:29]} 18. fxe3 {[%emt 0:00:07]} Rxc3 {[%emt 0:11:30]} 19. bxc3 {[%emt 0:00:04]} Bxg5 {[%emt 0:00:08]} 20. O-O-O {[%emt 0:06:14]} Bxe3+ {[%emt 0:05:03]} 21. Kb2 {[%emt 0:00:04]} Bh6 {[%emt 0:01:12]} 22. Bf1 {[%emt 0:06:55]} Ke7 {[%emt 0:13:30]} 23. Bd3 {[%emt 0:03:31]} a5 {[%emt 0:08:06]} 24. Nd2 {[%emt 0:01:00]} Bxd2 {[%emt 0:09:25]} 25. Rxd2 {[%emt 0:00:09]} Ne6 {[%emt 0:00:06]} 26. Qh4+ {[%emt 0:05:55]} Kd7 {[%emt 0:01:17]} 27. Qh5 {[%emt 0:03:26]} Qf6 {[%emt 0:01:25]} 28. Qh8 {[%emt 0:02:09]} Kc7 {[%emt 0:04:23]} 29. Rh2 {[%emt 0:02:58]} Qd8 {[%emt 0:08:25]} 30. Qh5 {[%emt 0:00:23]} Qe7 {[%emt 0:00:40]} 31. Qh7 {[%emt 0:06:56]} d5 {[%emt 0:05:33]} 32. exd5 {[%emt 0:05:20]} Bxd5 {[%emt 0:00:06]} 33. Bb5 {[%emt 0:00:03]} Bb7 {[%emt 0:01:07]} 34. Rd2 {[%emt 0:00:20]} Bc8 {[%emt 0:00:23]} 35. Qe4 {[%emt 0:05:03]} Nd8 {[%emt 0:00:05]} 36. Qc4+ {[%emt 0:00:25]} Qc5 {[%emt 0:00:37]} 37. Qe4 {[%emt 0:01:23]} Qe7 {[%emt 0:00:07]} 38. Qc4+ {[%emt 0:05:35]} Kb8 {[%emt 0:00:25]} 39. Qd5 {[%emt 0:00:42]} Kc7 1/2-1/2

[Event "5th EKA IIFL Investment 2019"]
[Site "Mumbai"]
[Date "2020.01.05"]
[Round "7.19"]
[White "Srijit Paul"]
[Black "Puranik, Abhimanyu"]
[Result "0-1"]
[ECO "C54"]
[WhiteElo "2313"]
[BlackElo "2598"]
[Annotator "ChessBase"]
[PlyCount "66"]
[EventDate "2019.12.30"]
[EventType "swiss"]
[EventCountry "IND"]
[SourceTitle "playchess.com"]
[Source "ChessBase"]
[SourceQuality "1"]
[TimeControl "40/5400+30:1800+30"]

1. e4 {[%emt 0:00:00]} e5 {[%emt 0:00:00]} 2. Nf3 {[%emt 0:00:00]} Nc6 {[%emt 0:00:00]} 3. Bc4 {[%emt 0:01:24]} Bc5 {[%emt 0:00:07]} 4. c3 {[%emt 0:00:12]} Nf6 {[%emt 0:00:32]} 5. d3 {[%emt 0:00:05]} d6 {[%emt 0:00:29]} 6. h3 {[%emt 0:00:11]} a6 {[%emt 0:00:46]} 7. Bb3 {[%emt 0:00:04]} h6 {[%emt 0:01:06]} 8. Nbd2 {[%emt 0:00:20]} Be6 {[%emt 0:01:59]} 9. Qe2 {[%emt 0:06:17]} O-O {[%emt 0:01:02]} 10. g4 {[%emt 0:02:17]} d5 {[%emt 0:10:21]} 11. g5 {[%emt 0:02:16]} Nh5 {[%emt 0:02:46]} 12. Nf1 {[%emt 0:00:36]} dxe4 {[%emt 0:07:59]} 13. dxe4 {[%emt 0:06:27]} Bxb3 {[%emt 0:06:28]} 14. axb3 {[%emt 0:02:13]} hxg5 {[%emt 0:02:39]} 15. Nxg5 {[%emt 0:02:21]} g6 {[%emt 0:00:35]} 16. Rg1 {[%emt 0:00:11]} Qf6 {[%emt 0:02:51]} 17. Ne3 {[%emt 0:14:45]} Nf4 {[%emt 0:04:54]} 18. Nd5 {[%emt 0:09:16]} Bxf2+ {[%emt 0:01:32]} 19. Kxf2 {[%emt 0:00:04]} Nxd5+ {[%emt 0:00:06]} 20. Kg3 {[%emt 0:00:04]} Nf4 {[%emt 0:01:23]} 21. Qg4 {[%emt 0:00:04]} Rad8 {[%emt 0:08:26]} 22. Bxf4 {[%emt 0:01:07]} exf4+ {[%emt 0:02:39]} 23. Qxf4 {[%emt 0:00:05]} Rd3+ {[%emt 0:03:26]} 24. Nf3 {[%emt 0:00:05]} Qxf4+ {[%emt 0:10:38]} 25. Kxf4 {[%emt 0:00:07]} Nd8 {[%emt 0:00:25]} 26. Rad1 {[%emt 0:02:38]} Ne6+ {[%emt 0:00:08]} 27. Kg4 {[%emt 0:00:05]} Nc5 {[%emt 0:07:01]} 28. Ng5 {[%emt 0:02:17]} Rxd1 {[%emt 0:08:47]} 29. Rxd1 {[%emt 0:00:07]} Re8 {[%emt 0:00:02]} 30. Kg3 {[%emt 0:15:07]} a5 {[%emt 0:08:54]} 31. Rd4 {[%emt 0:04:50]} Re5 {[%emt 0:02:01]} 32. h4 {[%emt 0:04:40]} f6 {[%emt 0:00:30]} 33. b4 {[%emt 0:00:02]} fxg5 {[%emt 0:02:01]} 0-1

[Event "5th EKA IIFL Investment 2019"]
[Site "Mumbai"]
[Date "2020.01.05"]
[Round "7.22"]
[White "Pranesh M"]
[Black "Koustav Chatterjee"]
[Result "1/2-1/2"]
[ECO "C89"]
[WhiteElo "2317"]
[BlackElo "2443"]
[Annotator "NA"]
[PlyCount "84"]
[EventDate "2019.12.30"]
[EventType "swiss"]
[EventCountry "IND"]
[SourceTitle "playchess.com"]
[Source "ChessBase"]
[SourceQuality "1"]
[TimeControl "40/5400+30:1800+30"]

1. e4 {[%emt 0:00:00]} e5 {[%emt 0:00:00]} 2. Nf3 {[%emt 0:00:00]} Nc6 {[%emt 0:00:00]} 3. Bb5 {[%emt 0:00:02]} a6 {[%emt 0:00:00]} 4. Ba4 {[%emt 0:00:04]} Nf6 {[%emt 0:00:00]} 5. O-O {[%emt 0:00:09]} Be7 {[%emt 0:00:00]} 6. Re1 {[%emt 0:00:07]} b5 {[%emt 0:00:02]} 7. Bb3 {[%emt 0:00:01]} O-O {[%emt 0:00:10]} 8. c3 {[%emt 0:05:35]} d5 {[%emt 0:00:57]} 9. d3 {[%emt 0:01:10]} d4 {[%emt 0:25:15]} 10. a4 {[%emt 0:02:24]} Rb8 {[%emt 0:01:02]} 11. axb5 {[%emt 0:08:57]} axb5 {[%emt 0:00:18]} 12. h3 {[%emt 0:00:49]} Bc5 {[%emt 0:06:01]} 13. Bc2 {[%emt 0:04:15]} Re8 {[%emt 0:13:13]} 14. Nbd2 {[%emt 0:01:48]} h6 {[%emt 0:00:21]} 15. Nb3 {[%emt 0:02:17]} Bb6 {[%emt 0:00:48]} 16. cxd4 {[%emt 0:02:13]} exd4 {[%emt 0:01:46]} 17. Bf4 {[%emt 0:02:08]} Be6 {[%emt 0:03:04]} 18. Qd2 {[%emt 0:04:30]} Qe7 {[%emt 0:04:11]} 19. Rec1 {[%emt 0:02:36]} Rbd8 {[%emt 0:03:35]} 20. Bd1 {[%emt 0:13:40]} Nb4 {[%emt 0:01:05]} 21. Bxc7 {[%emt 0:08:26]} Bxc7 {[%emt 0:00:44]} 22. Rxc7 {[%emt 0:00:32]} Qxc7 {[%emt 0:00:09]} 23. Qxb4 {[%emt 0:00:04]} Nh5 {[%emt 0:06:12]} 24. Nbxd4 {[%emt 0:04:52]} Nf4 {[%emt 0:01:39]} 25. Qd2 {[%emt 0:02:14]} g5 {[%emt 0:04:08]} 26. h4 {[%emt 0:03:50]} Bg4 {[%emt 0:05:28]} 27. Rc1 {[%emt 0:00:42]} Qd7 {[%emt 0:03:00]} 28. hxg5 {[%emt 0:02:11]} Bxf3 {[%emt 0:06:49]} 29. Qxf4 {[%emt 0:02:33]} Qxd4 {[%emt 0:01:22]} 30. g6 {[%emt 0:05:34]} fxg6 {[%emt 0:02:31]} 31. Bb3+ {[%emt 0:01:24]} Kh7 {[%emt 0:00:14]} 32. Rc7+ {[%emt 0:09:01]} Rd7 {[%emt 0:00:05]} 33. Rxd7+ {[%emt 0:00:21]} Qxd7 {[%emt 0:00:07]} 34. Qxf3 {[%emt 0:00:07]} Qg7 {[%emt 0:02:24]} 35. Bd5 {[%emt 0:01:31]} Rc8 {[%emt 0:00:49]} 36. g3 {[%emt 0:04:17]} Qxb2 {[%emt 0:00:44]} 37. Qf7+ {[%emt 0:00:23]} Qg7 {[%emt 0:00:08]} 38. Qe6 {[%emt 0:00:03]} Rc3 {[%emt 0:04:59]} 39. Qd6 {[%emt 0:02:38]} b4 {[%emt 0:01:22]} 40. Qxb4 {[%emt 0:00:00]} Rxd3 {[%emt 0:00:00]} 41. Qd6 {[%emt 0:04:03]} Rd1+ {[%emt 0:01:58]} 42. Kg2 {[%emt 0:00:10]} Re1 {[%emt 0:00:46]} 1/2-1/2

[Event "5th EKA IIFL Investment 2019"]
[Site "Mumbai"]
[Date "2020.01.05"]
[Round "7.24"]
[White "Sundararajan, Kidambi"]
[Black "Shailesh, Dravid"]
[Result "1/2-1/2"]
[ECO "A00"]
[WhiteElo "2414"]
[BlackElo "2311"]
[Annotator "NA"]
[PlyCount "83"]
[EventDate "2019.12.30"]
[EventType "swiss"]
[EventCountry "IND"]
[SourceTitle "playchess.com"]
[Source "ChessBase"]
[SourceQuality "1"]
[TimeControl "40/5400+30:1800+30"]

1. g3 {[%emt 0:00:00]} e5 {[%emt 0:00:38]} 2. Bg2 {[%emt 0:00:49]} d6 {[%emt 0:01:07]} 3. d4 {[%emt 0:01:24]} exd4 {[%emt 0:01:34]} 4. Qxd4 {[%emt 0:00:30]} Nf6 {[%emt 0:00:30]} 5. Nh3 {[%emt 0:03:38]} Nc6 {[%emt 0:01:50]} 6. Qd1 {[%emt 0:02:23]} g6 {[%emt 0:05:20]} 7. c4 {[%emt 0:02:55]} Bg7 {[%emt 0:01:02]} 8. Nc3 {[%emt 0:01:39]} O-O {[%emt 0:00:36]} 9. O-O {[%emt 0:02:20]} Re8 {[%emt 0:08:05]} 10. Nf4 {[%emt 0:02:58]} Bf5 {[%emt 0:01:56]} 11. f3 {[%emt 0:03:14]} Ne5 {[%emt 0:02:53]} 12. e4 {[%emt 0:01:05]} Bd7 {[%emt 0:01:20]} 13. b3 {[%emt 0:03:50]} a6 {[%emt 0:04:20]} 14. a4 {[%emt 0:05:25]} a5 {[%emt 0:07:30]} 15. Be3 {[%emt 0:02:15]} b6 {[%emt 0:04:09]} 16. Rc1 {[%emt 0:01:16]} Bc8 {[%emt 0:03:49]} 17. Nfd5 {[%emt 0:09:59]} Nxd5 {[%emt 0:03:48]} 18. Nxd5 {[%emt 0:00:16]} Bb7 {[%emt 0:05:32]} 19. Bh3 {[%emt 0:15:37]} Nd7 {[%emt 0:16:30]} 20. Bxd7 {[%emt 0:02:02]} Qxd7 {[%emt 0:00:10]} 21. Bd4 {[%emt 0:00:30]} f5 {[%emt 0:02:04]} 22. exf5 {[%emt 0:01:58]} gxf5 {[%emt 0:01:31]} 23. Rc2 {[%emt 0:08:54]} Qf7 {[%emt 0:04:08]} 24. Bxg7 {[%emt 0:05:48]} Qxg7 {[%emt 0:00:58]} 25. Qd3 {[%emt 0:06:45]} Re5 {[%emt 0:03:29]} 26. Qc3 {[%emt 0:05:22]} Qf7 {[%emt 0:02:19]} 27. f4 {[%emt 0:04:05]} Re6 {[%emt 0:02:06]} 28. Re1 {[%emt 0:02:02]} Rxe1+ {[%emt 0:03:15]} 29. Qxe1 {[%emt 0:00:06]} Bxd5 {[%emt 0:00:03]} 30. cxd5 {[%emt 0:00:08]} Re8 {[%emt 0:00:05]} 31. Re2 {[%emt 0:01:52]} Rxe2 {[%emt 0:01:55]} 32. Qxe2 {[%emt 0:00:04]} Qxd5 {[%emt 0:00:06]} 33. Qe8+ {[%emt 0:00:08]} Kg7 {[%emt 0:00:06]} 34. Qe7+ {[%emt 0:00:08]} Kg6 {[%emt 0:01:52]} 35. Qg5+ {[%emt 0:00:18]} Kf7 {[%emt 0:00:05]} 36. Qh5+ {[%emt 0:00:09]} Ke7 {[%emt 0:04:30]} 37. Qxh7+ {[%emt 0:00:16]} Kd8 {[%emt 0:00:04]} 38. Qh8+ {[%emt 0:01:52]} Kd7 {[%emt 0:00:05]} 39. Qg7+ {[%emt 0:01:49]} Kc6 {[%emt 0:01:07]} 40. Qc3+ {[%emt 0:00:00]} Kb7 {[%emt 0:00:00]} 41. Kf2 {[%emt 0:03:00]} Kb8 {[%emt 0:04:59]} 42. Qh8+ {[%emt 0:01:26]} 1/2-1/2